bitfinex/quotes_ETHUSD_20251127
["timestamp","ask_amount","ask_price","bid_price","bid_amount"]
[1764206400424,5.72493647,3035.1,3035.0,0.001]
[1764206400925,6.45053058,3035.1,3035.0,0.001]
[1764206401122,0.405504,3034.7,3034.6,0.001]
[1764206401460,0.99612449,3034.7,3034.6,0.001]
[1764206401659,4.74724312,3034.7,3034.6,0.001]
[1764206401951,5.45667383,3034.7,3034.6,0.001]
[1764206402654,4.92807383,3034.7,3034.6,0.001]
[1764206402855,5.37957383,3034.7,3034.6,0.001]
[1764206403155,4.97406983,3034.7,3034.6,0.001]
[1764206403323,5.42996983,3034.7,3034.6,0.001]
[1764206403956,4.97406983,3034.7,3034.6,0.001]
[1764206404852,1.4688512,3034.7,3034.6,0.001]
[1764206405047,5.42996983,3034.7,3034.6,0.001]
[1764206405447,5.52996983,3034.7,3034.6,0.001]
[1764206406844,4.52256983,3034.7,3034.6,0.001]
[1764206407038,4.97406983,3034.7,3034.6,0.001]
[1764206407436,1.6788512,3034.7,3034.6,0.001]
[1764206407636,5.44536983,3034.7,3034.6,0.001]
[1764206409680,1.6788512,3034.7,3034.6,0.001]
[1764206409837,1.2273512,3034.7,3034.6,0.4552]
[1764206410044,1.0173512,3034.7,3034.6,0.001]
[1764206410241,0.99802049,3034.7,3034.6,0.001]
[1764206410467,1.7074512,3034.7,3034.6,0.001]
[1764206410671,1.2273512,3034.7,3034.6,0.001]
[1764206410856,0.51792049,3034.7,3034.6,0.001]
[1764206411243,1.2273512,3034.7,3034.6,0.4552]
[1764206412046,3.81313912,3034.7,3034.6,0.4552]
[1764206412372,0.51792049,3034.7,3034.6,0.4552]
[1764206412755,3.81313912,3034.7,3034.6,0.001]
[1764206414349,4.52298653,3034.7,3034.6,0.001]
[1764206415576,5.49318653,3034.7,3034.6,0.001]
[1764206416176,5.59318653,3034.7,3034.6,0.001]
[1764206416748,5.99869053,3034.7,3034.6,0.001]
[1764206418458,4.92849053,3034.7,3034.6,0.4552]
[1764206418863,4.52298653,3034.7,3034.6,0.001]
[1764206419069,5.00308653,3034.7,3034.6,0.001]
[1764206419476,5.49318653,3034.7,3034.6,0.001]
[1764206424983,6.62428464,3034.7,3034.6,0.001]
[1764206425154,1.13109811,3034.6,3034.5,0.001]
[1764206425351,3.53193178,3034.6,3034.5,0.001]
[1764206425555,2.74396601,3034.6,3034.5,0.001]
[1764206426979,6.03968572,3034.6,3034.5,0.001]
[1764206427370,5.93968572,3034.6,3034.5,0.001]
[1764206427575,6.03968572,3034.6,3034.5,0.001]
[1764206429065,6.03968572,3034.6,3034.5,0.4552]
[1764206429066,1.01816039,3034.6,3034.5,0.4552]
[1764206429264,5.41180759,3034.6,3034.5,0.4552]
[1764206429585,6.88751159,3034.6,3034.5,0.001]
[1764206431203,5.99190759,3034.6,3034.5,0.001]
[1764206431498,6.88751159,3034.6,3034.5,0.001]
[1764206432478,5.99919161,3034.6,3034.5,0.001]
[1764206432877,6.72478572,3034.6,3034.5,0.001]
[1764206433084,7.90894587,3034.6,3034.5,0.001]
[1764206433994,7.41884587,3034.6,3034.5,0.001]
[1764206434199,7.31884587,3034.6,3034.5,0.001]
[1764206434497,7.90894587,3034.6,3034.5,0.001]
[1764206437402,6.72478572,3034.6,3034.5,0.001]
[1764206437784,7.90894587,3034.6,3034.5,0.001]
[1764206438679,0.505504,3034.2,3034.1,0.001]
[1764206438879,2.62767632,3034.2,3034.1,0.001]
[1764206439073,3.84347043,3034.2,3034.1,0.001]
[1764206439300,3.84469762,3034.2,3034.1,0.001]
[1764206439598,2.9557051,3034.2,3034.1,0.001]
[1764206440006,4.14118768,3034.2,3034.1,0.001]
[1764206440182,9.8879367,3034.0,3033.3,0.4784]
[1764206440505,9.8879367,3034.0,3032.5,3.47960599]
[1764206440506,0.912104,3033.4,3032.5,0.182]
[1764206440703,0.1,3032.9,3032.5,0.182]
[1764206440903,0.51831298,3032.8,3032.5,0.638]
[1764206441106,0.30831298,3032.7,3032.5,0.182]
[1764206441308,0.30839777,3032.6,3032.5,0.182]
[1764206441604,0.30839777,3032.6,3032.5,0.638]
[1764206441905,0.30839777,3032.6,3032.5,1.1137]
[1764206442318,3.60589826,3032.6,3032.5,0.4757]
[1764206443080,0.30839777,3032.6,3032.5,0.4757]
[1764206443277,3.60589826,3032.6,3032.5,0.4757]
[1764206443818,0.30839777,3032.6,3032.5,0.9317]
[1764206444319,0.30839777,3032.6,3031.7,3.48177047]
[1764206444320,0.1,3032.4,3031.7,0.6393]
[1764206444610,0.405504,3032.0,3031.7,0.6393]
[1764206444817,0.51839777,3031.9,3031.7,0.1833]
[1764206445114,0.30839777,3031.8,3031.6,0.12782765]
[1764206445283,0.30839777,3031.7,3031.6,0.12782765]
[1764206445654,0.30839777,3031.7,3031.6,0.07782765]
[1764206445918,0.30839777,3031.7,3031.6,0.55352765]
[1764206446091,0.3075122,3031.7,3031.6,0.55352765]
[1764206446500,3.6059916,3031.7,3031.6,0.55352765]
[1764206447186,0.3075122,3031.7,3031.6,0.55352765]
[1764206447390,0.3075122,3031.7,3031.6,1.00952765]
[1764206448109,3.5082651,3031.9,3031.6,1.00952765]
[1764206448335,0.30682006,3031.8,3031.6,0.53382765]
[1764206448613,0.30682006,3031.8,3031.7,0.456]
[1764206448922,0.99108518,3032.5,3031.7,0.9317]
[1764206448923,3.29764902,3032.5,3031.7,0.9317]
[1764206449087,3.29764902,3032.5,3031.6,3.37640371]
[1764206449088,0.21,3032.2,3031.8,0.456]
[1764206449492,0.21,3032.2,3032.1,0.5589]
[1764206450121,0.21,3032.2,3032.1,1.0149]
[1764206450484,0.51678916,3032.2,3032.1,1.0149]
[1764206450997,0.21,3033.1,3032.1,4.31292211]
[1764206451202,0.30656196,3033.0,3032.3,0.4757]
[1764206451409,0.30656196,3032.9,3032.3,0.4757]
[1764206451721,0.40656196,3032.8,3032.3,0.4757]
[1764206452023,0.51656196,3032.7,3032.3,0.9317]
[1764206452210,0.51656196,3032.7,3032.3,0.456]
[1764206452397,0.21,3032.7,3032.6,0.4757]
[1764206452726,2.27582552,3032.7,3032.0,0.001]
[1764206452934,7.30713639,3032.6,3032.1,0.0832]
[1764206453231,0.405504,3032.4,3032.0,0.001]
[1764206453435,0.21,3032.3,3032.0,0.001]
[1764206453614,0.21,3032.3,3032.1,0.0832]
[1764206453819,0.21,3032.3,3032.2,0.4757]
[1764206454614,3.50782673,3032.3,3032.2,0.4757]
[1764206455201,0.21,3032.3,3032.2,0.9317]
[1764206455637,0.21,3032.3,3032.0,0.001]
[1764206455638,0.405504,3032.2,3032.0,0.001]
[1764206455812,0.868204,3032.1,3032.0,0.001]
[1764206456222,4.16624825,3032.1,3032.0,0.001]
[1764206456748,5.45994236,3032.1,3032.0,0.001]
[1764206456954,6.16655597,3032.1,3032.0,0.001]
[1764206461330,6.29872074,3032.1,3032.0,0.001]
[1764206462770,5.36792074,3032.1,3032.0,0.001]
[1764206463056,0.21,3032.3,3032.0,0.9327]
[1764206463360,0.21,3032.3,3032.2,0.4757]
[1764206463726,0.21,3032.3,3032.2,0.9317]
[1764206464120,0.1866,3032.9,3032.2,0.4757]
[1764206464319,0.1,3032.7,3032.2,0.4757]
[1764206464544,3.29750049,3032.6,3032.2,0.4757]
[1764206464741,3.29750049,3032.6,3032.2,0.9703]
[1764206464941,6.59500098,3032.6,3032.2,0.9703]
[1764206465120,3.29750049,3032.6,3032.3,0.4946]
[1764206465322,0.30685425,3032.5,3032.3,0.4946]
[1764206465517,0.51685425,3032.4,3032.3,0.4946]
[1764206465825,0.51685425,3032.4,3032.3,0.4963]
[1764206467341,0.51685425,3032.4,3032.3,0.9909]
[1764206467824,0.30685425,3032.4,3032.3,1.42811178]
[1764206468182,0.30685425,3032.4,3032.3,0.9909]
[1764206472161,0.30685425,3032.4,3032.1,0.0842]
[1764206472332,0.30685425,3032.3,3032.1,0.5736]
[1764206472530,0.30685425,3032.2,3032.1,0.0842]
[1764206472948,0.30685425,3032.2,3032.1,0.5355]
[1764206473133,0.30685425,3032.2,3032.1,1.0249]
[1764206474982,6.03078785,3032.2,3032.1,0.001]
[1764206475279,4.42914236,3032.1,3032.0,0.001]
[1764206475562,5.43679661,3032.1,3032.0,0.001]
[1764206476170,6.3256313,3032.1,3032.0,0.001]
[1764206476339,6.32698258,3032.1,3032.0,0.001]
[1764206477448,5.43814789,3032.1,3032.0,0.001]
[1764206477964,6.32698258,3032.1,3032.0,0.001]
[1764206478468,5.33814789,3032.1,3032.0,0.001]
[1764206478966,5.43814789,3032.1,3032.0,0.001]
[1764206480171,4.85174789,3032.1,3032.0,0.001]
[1764206480767,4.73734789,3032.1,3032.0,0.001]
[1764206480961,5.23584789,3032.1,3032.0,0.001]
[1764206481162,5.72224789,3032.1,3032.0,0.001]
[1764206481763,6.71108258,3032.1,3032.0,0.001]
[1764206482147,5.82224789,3032.1,3032.0,0.001]
[1764206482477,4.73734789,3032.1,3032.0,0.001]
[1764206484375,5.23584789,3032.1,3032.0,0.001]
[1764206484762,5.82224789,3032.1,3032.0,0.001]
[1764206485080,5.33584789,3032.1,3032.0,0.001]
[1764206485692,4.73734789,3032.1,3032.0,0.4523]
[1764206485851,0.30820553,3032.1,3032.0,0.4523]
[1764206486056,0.30820553,3032.1,3032.0,0.9417]
[1764206487682,3.60624978,3032.1,3032.0,0.9417]
[1764206488452,3.60624978,3032.1,3032.0,0.001]
[1764206488453,5.23584789,3032.1,3032.0,0.001]
[1764206488681,6.71108258,3032.1,3032.0,0.001]
[1764206489381,6.71308258,3032.1,3032.0,0.001]
[1764206490057,13.20917108,3032.1,3031.6,0.07882765]
[1764206490263,0.89460553,3032.0,3031.6,0.07882765]
[1764206490554,0.51820553,3031.9,3031.6,0.07882765]
[1764206490878,0.30820553,3031.8,3031.6,0.07882765]
[1764206491065,0.30820553,3031.7,3031.6,0.07882765]
[1764206491876,4.33227904,3031.7,3031.6,0.53012765]
[1764206492074,0.30820553,3031.7,3031.6,1.01952765]
[1764206492261,3.60668493,3031.7,3031.6,1.01952765]
[1764206493063,3.60668493,3031.7,3031.6,0.53012765]
[1764206493862,3.60668493,3031.7,3031.6,1.01952765]
[1764206494389,3.60668493,3031.7,3031.6,0.53012765]
[1764206495792,3.60668493,3031.7,3031.6,1.01952765]
[1764206496486,3.60668493,3031.7,3031.6,0.53012765]
[1764206497278,0.30820553,3031.7,3031.6,0.53012765]
[1764206497479,3.60668493,3031.7,3031.6,0.53012765]
[1764206497783,3.60668493,3031.7,3031.6,1.01952765]
[1764206498297,3.60668493,3031.7,3031.6,0.53012765]
[1764206498472,3.60668493,3031.7,3031.6,1.01952765]
[1764206499066,0.30820553,3031.7,3031.6,1.01952765]
[1764206500600,0.30820553,3031.7,3031.6,0.53012765]
[1764206500789,3.60668493,3031.7,3031.6,0.53012765]
[1764206501102,4.57018493,3031.7,3031.6,0.07882765]
[1764206502881,4.08138493,3031.7,3031.6,0.07882765]
[1764206506503,9.96431707,3031.7,3031.6,0.07882765]
[1764206507703,9.48961707,3031.7,3031.6,0.56432765]
[1764206508715,9.96431707,3031.7,3031.6,0.07882765]
[1764206511329,0.30820553,3031.7,3031.6,1.01752765]
[1764206511619,0.30820553,3031.7,3031.6,1.70767363]
[1764206511789,0.30820553,3031.7,3031.6,0.56432765]
[1764206512815,0.30820553,3031.7,3031.6,1.01752765]
[1764206514212,0.30820553,3031.7,3031.6,0.56432765]
[1764206514892,0.30820553,3031.7,3031.6,1.01752765]
[1764206515613,4.29138493,3031.7,3031.6,0.07882765]
[1764206516309,3.81668493,3031.7,3031.6,0.07882765]
[1764206516609,4.29138493,3031.7,3031.6,0.07882765]
[1764206517917,0.51820553,3031.7,3031.6,0.56432765]
[1764206518095,0.51820553,3031.7,3031.6,1.01752765]
[1764206518915,0.51820553,3031.7,3031.6,0.56432765]
[1764206519082,3.81668493,3031.7,3031.6,0.56432765]
[1764206519414,0.51820553,3031.7,3031.6,0.56432765]
[1764206519901,0.51820553,3031.7,3031.6,1.01752765]
[1764206520102,0.51820553,3031.7,3031.6,0.56432765]
[1764206521186,3.81668493,3031.7,3031.6,0.07882765]
[1764206521617,0.51820553,3031.7,3031.6,0.56432765]
[1764206522119,0.51820553,3031.7,3031.6,1.01752765]
[1764206523215,0.30820553,3031.7,3031.6,1.01752765]
[1764206523920,4.02818493,3031.7,3031.6,0.07882765]
[1764206524702,0.72970553,3031.7,3031.6,0.07882765]
[1764206525017,0.30820553,3031.7,3031.6,0.07882765]
[1764206527419,0.76180553,3031.7,3031.6,0.07882765]
[1764206529717,4.06028493,3031.7,3031.6,0.07882765]
[1764206531011,0.76180553,3031.7,3031.6,0.07882765]
[1764206531213,0.30820553,3031.7,3031.6,0.07882765]
[1764206531814,3.60668493,3031.7,3031.6,0.57052765]
[1764206531985,0.30820553,3031.7,3031.6,0.57052765]
[1764206532592,0.78220553,3031.7,3031.6,0.07882765]
[1764206532793,0.30820553,3031.7,3031.6,0.57052765]
[1764206534123,0.30820553,3031.7,3031.6,1.04952765]
[1764206534427,0.30820553,3031.7,3031.6,0.57052765]
[1764206534612,0.30820553,3031.7,3031.6,4.34811585]
[1764206534815,0.30820553,3031.7,3031.6,5.11290731]
[1764206534998,0.30820553,3031.7,3031.6,0.07882765]
[1764206535198,0.78220553,3031.7,3031.6,0.07882765]
[1764206536128,4.08068493,3031.7,3031.6,0.07882765]
[1764206536430,4.57188493,3031.7,3031.6,0.07882765]
[1764206536799,4.08068493,3031.7,3031.6,0.07882765]
[1764206537001,4.57188493,3031.7,3031.6,0.07882765]
[1764206537209,11.26677199,3031.7,3031.6,0.07882765]
[1764206538213,11.67227599,3031.7,3031.6,0.07882765]
[1764206538415,12.75782494,3031.7,3031.6,0.07882765]
[1764206538601,3.8040922,3031.6,3031.5,0.001]
[1764206538796,5.71130422,3031.6,3031.5,0.001]
[1764206540431,6.60092482,3031.6,3031.5,0.001]
[1764206542939,1.02011202,3031.6,3031.5,0.4927]
[1764206543124,5.25429433,3031.6,3031.5,0.4927]
[1764206543434,0.51820553,3031.6,3031.5,0.9717]
[1764206543639,0.30820553,3031.6,3031.5,0.9717]
[1764206545430,0.30887011,3031.6,3031.5,0.9717]
[1764206546232,0.30887011,3031.6,3031.5,0.4927]
[1764206546424,0.31087011,3031.6,3031.5,0.4927]
[1764206547309,0.78487011,3031.6,3031.5,0.001]
[1764206547906,0.31087011,3031.6,3031.5,0.4927]
[1764206551020,0.78487011,3031.6,3031.5,0.001]
[1764206552134,5.30025242,3031.6,3031.5,0.001]
[1764206556634,5.40025242,3031.6,3031.5,0.001]
[1764206557439,5.80575642,3031.6,3031.5,0.001]
[1764206561757,6.69535885,3031.6,3031.5,0.001]
[1764206565034,6.6954085,3031.6,3031.5,0.001]
[1764206568374,6.5954085,3031.6,3031.5,0.001]
[1764206568539,6.6954085,3031.6,3031.5,0.001]
[1764206570161,10.1714085,3031.6,3031.5,0.001]
[1764206570466,6.6954085,3031.6,3031.5,0.001]
[1764206571772,7.1689085,3031.6,3031.5,0.001]
[1764206573370,5.21410607,3031.6,3031.5,0.4894]
[1764206573864,4.33510207,3031.6,3031.5,0.9629]
[1764206574075,0.31091976,3031.6,3031.5,0.9629]
[1764206574241,0.52091976,3031.6,3031.5,0.9629]
[1764206574852,3.81950796,3031.6,3031.5,0.4894]
[1764206575263,3.81950796,3031.6,3031.5,0.9629]
[1764206575666,3.81950796,3031.6,3031.5,0.4894]
[1764206579345,4.30970796,3031.6,3031.5,0.001]
[1764206579869,3.81950796,3031.6,3031.5,0.4894]
[1764206581054,4.40970796,3031.6,3031.5,0.001]
[1764206581257,4.88630796,3031.6,3031.5,0.001]
[1764206581583,5.77596547,3031.6,3031.5,0.001]
[1764206582445,5.77625949,3031.6,3031.5,0.001]
[1764206582855,5.29965949,3031.6,3031.5,0.001]
[1764206583754,4.70945949,3031.6,3031.5,0.4894]
[1764206583977,3.81980198,3031.6,3031.5,0.4894]
[1764206584267,4.70945949,3031.6,3031.5,0.4894]
[1764206585670,3.81980198,3031.6,3031.5,0.9629]
[1764206586076,4.70945949,3031.6,3031.5,0.4894]
[1764206588377,0.31121378,3031.6,3031.5,0.9675]
[1764206588950,0.31121378,3031.6,3031.5,4.69283599]
[1764206589182,0.002,3032.0,3031.5,7.991533]
[1764206589383,0.002,3032.0,3031.9,0.457]
[1764206589879,0.002,3032.0,3031.9,0.9186]
[1764206592051,0.002,3032.0,3031.9,4.21686181]
[1764206592255,0.002,3032.0,3031.9,4.96839311]
[1764206593188,0.002,3032.0,3031.9,1.6701313]
[1764206593353,0.002,3032.0,3031.9,0.9186]
[1764206593555,0.002,3032.0,3031.9,4.21686181]
[1764206593754,0.002,3032.0,3031.9,0.9186]
[1764206594257,0.002,3032.0,3031.9,4.21686181]
[1764206596157,0.002,3032.0,3031.9,0.9186]
[1764206596367,0.002,3032.0,3031.9,4.63855646]
[1764206598584,0.002,3032.3,3032.0,0.4633]
[1764206598773,0.002,3032.3,3032.2,0.6532]
[1764206599272,0.002,3032.3,3032.2,2.83094262]
[1764206599475,0.002,3032.3,3032.2,3.72333558]
[1764206599679,0.002,3032.5,3032.2,10.72471056]
[1764206599877,0.002,3032.5,3032.4,0.4633]
[1764206600075,0.002,3032.5,3032.4,0.9249]
[1764206600274,0.002,3032.5,3032.4,1.91534386]
[1764206600461,0.002,3032.5,3032.4,3.06036386]
[1764206601783,0.002,3032.5,3032.4,6.35808183]
[1764206602587,0.002,3032.5,3032.4,12.96666293]
[1764206603093,0.002,3032.7,3032.5,0.72559411]
[1764206603389,0.002,3032.7,3032.6,1.1349]
[1764206603591,0.002,3032.7,3032.6,2.78233809]
[1764206603885,0.002,3032.7,3032.6,6.07983858]
[1764206604086,0.002,3032.7,3032.6,11.96282557]
[1764206604793,0.002,3032.7,3032.6,6.07983858]
[1764206605573,0.002,3032.7,3032.6,5.86983858]
[1764206605774,0.002,3032.7,3032.6,6.07983858]
[1764206607084,0.002,3032.7,3032.6,6.59543269]
[1764206607283,0.002,3032.7,3032.6,6.80543269]
[1764206608068,0.002,3032.7,3032.6,6.59543269]
[1764206608388,0.002,3032.7,3032.6,6.80543269]
[1764206610277,0.002,3032.7,3032.6,2.57233809]
[1764206610599,0.002,3032.7,3032.6,4.22240049]
[1764206612072,0.002,3032.7,3032.6,0.9249]
[1764206612278,0.002,3032.7,3032.6,4.43240049]
[1764206612996,0.002,3032.7,3032.4,3.29771332]
[1764206612997,0.9465,3032.7,3032.2,0.1899]
[1764206613199,0.0323,3032.5,3032.0,0.6716]
[1764206613395,0.0323,3032.5,3032.0,3.96974981]
[1764206613697,0.0323,3032.5,3032.1,0.39697498]
[1764206613870,0.4836,3032.7,3032.4,0.4633]
[1764206614065,0.30712636,3032.6,3032.4,0.4633]
[1764206614271,0.30712636,3032.6,3032.4,0.4616]
[1764206614479,0.002,3032.7,3032.1,3.86779802]
[1764206614969,0.30912641,3032.7,3032.1,3.86779802]
[1764206615170,0.30912641,3032.7,3032.1,0.56977498]
[1764206615370,0.30912641,3032.7,3032.1,0.6344]
[1764206615681,0.30912641,3032.7,3032.1,3.93243964]
[1764206616094,0.30712641,3032.6,3032.1,3.93243964]
[1764206616469,0.30712641,3032.6,3032.2,0.4616]
[1764206616668,0.30712641,3032.6,3032.5,0.4633]
[1764206616993,0.30712641,3032.6,3032.2,0.4616]
[1764206617200,0.30712641,3032.5,3032.2,0.4616]
[1764206617496,0.30712641,3032.4,3032.2,0.4616]
[1764206617704,0.002,3032.7,3032.2,0.4616]
[1764206617888,0.30768552,3032.6,3032.3,0.4633]
[1764206618082,0.30768552,3032.5,3032.3,0.4633]
[1764206618328,0.30768552,3032.4,3032.3,0.4633]
[1764206618464,0.30768552,3032.4,3032.2,0.4616]
[1764206618669,0.002,3032.7,3032.3,0.4633]
[1764206618873,0.30794925,3032.6,3032.3,0.4633]
[1764206619096,0.002,3032.7,3032.3,0.4633]
[1764206619097,0.30794925,3032.5,3032.3,0.4633]
[1764206619294,0.30794925,3032.4,3032.3,0.4633]
[1764206619597,0.30794925,3032.4,3032.2,3.75949314]
[1764206619793,0.30804671,3032.3,3032.2,0.74414241]
[1764206619992,0.30804671,3032.3,3032.1,0.1728]
[1764206620193,0.489,3032.6,3032.1,0.1728]
[1764206620398,0.30809197,3032.5,3032.1,0.1728]
[1764206620598,0.30809197,3032.4,3032.1,0.1728]
[1764206620819,0.30809197,3032.3,3032.1,3.47080593]
[1764206620971,0.489,3032.6,3032.1,4.2186706]
[1764206621172,0.30809202,3032.5,3032.2,0.498]
[1764206621472,0.30809202,3032.4,3032.2,0.4986]
[1764206621799,0.002,3032.7,3032.2,0.4986]
[1764206621972,0.30811444,3032.6,3032.3,0.498]
[1764206622184,0.30811444,3032.5,3032.3,1.0195295]
[1764206622507,0.30811444,3032.4,3032.3,1.5181295]
[1764206622705,0.30811444,3032.4,3032.3,1.0201295]
[1764206622908,0.30811444,3032.4,3032.3,1.0195295]
[1764206623483,0.79131444,3032.4,3032.3,0.5215295]
[1764206623707,0.79131444,3032.4,3032.0,3.50914165]
[1764206623895,0.30811444,3032.3,3032.0,3.50914165]
[1764206624210,0.9722,3032.4,3032.1,0.4986]
[1764206624211,0.4832,3032.4,3032.1,0.4986]
[1764206624415,0.30825079,3032.3,3032.0,0.4996]
[1764206624615,0.491,3032.7,3032.0,0.4996]
[1764206624914,0.30825083,3032.6,3032.0,1.20921082]
[1764206625117,0.30825083,3032.5,3032.0,1.20921082]
[1764206625316,0.30825083,3032.4,3032.0,1.20921082]
[1764206625618,0.30825083,3032.3,3032.0,1.20921082]
[1764206625913,0.30825083,3032.2,3032.0,1.20921082]
[1764206626116,0.491,3032.7,3032.1,0.45074572]
[1764206626294,0.30829309,3032.6,3032.1,3.97327569]
[1764206626493,0.30829309,3032.6,3032.0,1.20921082]
[1764206626494,0.4832,3032.2,3032.0,0.001]
[1764206626696,0.79729309,3032.5,3032.0,0.001]
[1764206626697,0.0049,3032.1,3032.0,0.001]
[1764206627013,0.002,3032.7,3032.4,0.498]
[1764206627184,0.4868,3032.5,3032.1,0.1773]
[1764206627385,0.30830583,3032.4,3032.1,0.5748044]
[1764206627584,0.30830583,3032.3,3032.1,1.0734044]
[1764206627786,0.002,3032.7,3032.4,0.498]
[1764206628007,0.30829387,3032.6,3032.5,0.498]
[1764206628212,0.30829387,3032.6,3032.2,0.4986]
[1764206628418,0.30829387,3032.5,3032.2,4.58458613]
[1764206628604,0.30829387,3032.4,3032.2,4.58458613]
[1764206628790,0.30829387,3032.3,3032.2,4.58458613]
[1764206628997,0.30829387,3032.3,3032.2,0.78807014]
[1764206629188,0.30829387,3032.3,3032.2,1.28607014]
[1764206631000,0.30829387,3032.3,3032.2,0.78807014]
[1764206631213,0.79149387,3032.3,3032.0,0.4996]
[1764206631414,0.4832,3032.3,3032.0,3.79773627]
[1764206631619,0.489,3032.6,3032.0,3.79773627]
[1764206631927,0.30827706,3032.5,3032.0,3.79773627]
[1764206632109,0.30827706,3032.4,3032.0,3.79773627]
[1764206632312,0.489,3032.6,3032.1,0.70959975]
[1764206632313,0.30827706,3032.3,3032.1,0.70959975]
[1764206632514,0.489,3032.6,3032.0,7.0958893]
[1764206632713,0.30827598,3032.5,3032.2,0.498]
[1764206632914,0.30827598,3032.4,3032.0,0.001]
[1764206633115,0.30827598,3032.3,3032.0,0.001]
[1764206633423,3.29946255,3032.7,3032.0,0.001]
[1764206633424,0.489,3032.6,3032.0,0.001]
[1764206633634,0.4832,3032.1,3032.0,0.001]
[1764206633926,0.489,3032.5,3032.0,0.33092398]
[1764206634126,6.09298699,3032.6,3032.0,0.33092398]
[1764206634127,0.4868,3032.1,3032.0,0.001]
[1764206634329,0.21,3032.6,3032.0,0.001]
[1764206634622,0.21,3032.6,3032.1,0.1773]
[1764206634623,0.30838511,3032.5,3032.1,0.1773]
[1764206634824,0.30838511,3032.4,3032.1,0.1773]
[1764206635029,0.30838511,3032.3,3032.1,0.6759]
[1764206635226,0.30838511,3032.2,3032.1,0.6759]
[1764206635524,0.30838511,3032.2,3032.1,0.1773]
[1764206635731,0.30838511,3032.2,3032.1,0.6753]
[1764206635934,0.30838511,3032.2,3032.1,3.97334425]
[1764206636430,0.30838511,3032.2,3032.1,1.45241832]
[1764206637111,0.30838511,3032.2,3032.1,4.75046257]
[1764206637622,0.30838511,3032.2,3032.1,1.27511832]
[1764206637817,0.30838511,3032.2,3032.1,0.498]
[1764206638412,0.30838511,3032.2,3032.1,4.47194425]
[1764206638413,0.30873223,3032.2,3032.1,4.47194425]
[1764206642526,0.002,3032.6,3032.2,0.72559411]
[1764206642828,0.002,3032.6,3032.5,0.498]
[1764206643123,0.31124524,3032.6,3032.5,1.2066]
[1764206643699,0.002,3032.6,3032.5,1.2066]
[1764206643932,0.002,3032.6,3032.5,4.50420923]
[1764206644116,0.002,3032.6,3032.5,5.2844027]
[1764206645533,0.2756,3032.6,3032.5,0.78019347]
[1764206645711,0.002,3032.6,3032.5,4.00460923]
[1764206646434,0.002,3032.6,3032.5,3.79560923]
[1764206646606,0.4888,3032.6,3032.5,0.209]
[1764206646929,0.79743341,3032.6,3032.1,0.6759]
[1764206647227,0.30863341,3032.5,3032.2,1.05960881]
[1764206647526,0.30863341,3032.4,3032.2,1.05960881]
[1764206647730,0.002,3032.6,3032.3,0.4808]
[1764206647926,0.30865154,3032.5,3032.3,0.4808]
[1764206648129,0.30865154,3032.4,3032.3,0.4808]
[1764206648431,0.30865154,3032.4,3032.3,3.77860245]
[1764206649029,0.30865154,3032.4,3032.2,3.8589267]
[1764206649196,0.4797,3032.6,3032.2,3.8589267]
[1764206649398,0.30864352,3032.5,3032.2,3.8589267]
[1764206649629,0.30864352,3032.4,3032.2,3.8589267]
[1764206649827,0.4655,3032.3,3032.1,0.209]
[1764206650017,0.4797,3032.6,3032.2,0.4805]
[1764206650212,0.30865545,3032.5,3032.2,3.77833632]
[1764206650412,0.30865545,3032.4,3032.2,3.77833632]
[1764206650612,0.488,3032.6,3032.2,3.77833632]
[1764206650812,0.30866936,3032.5,3032.2,3.77833632]
[1764206651015,0.30866936,3032.4,3032.2,3.77833632]
[1764206651215,0.488,3032.6,3032.2,3.77833632]
[1764206651415,0.30865985,3032.5,3032.2,3.77833632]
[1764206651617,0.30865985,3032.4,3032.2,3.77833632]
[1764206651813,0.488,3032.6,3032.2,3.77833632]
[1764206652005,0.30867366,3032.5,3032.2,3.77833632]
[1764206652208,0.30867366,3032.4,3032.2,3.77833632]
[1764206652439,0.002,3032.6,3032.2,3.77833632]
[1764206652652,0.30867418,3032.5,3032.3,0.4917]
[1764206652810,0.002,3032.6,3032.5,0.4805]
[1764206653015,0.31065109,3032.6,3032.5,0.4805]
[1764206654248,0.31065109,3032.6,3032.5,4.26980923]
[1764206654951,0.77615109,3032.6,3032.5,3.50660923]
[1764206655320,0.77615109,3032.6,3032.5,3.97804868]
[1764206655560,0.77615109,3032.6,3032.1,0.001]
[1764206655561,1.26215109,3032.6,3032.1,0.001]
[1764206655868,0.4655,3032.2,3032.1,0.001]
[1764206656214,0.9515,3032.2,3032.1,0.001]
[1764206658631,4.24943549,3032.2,3032.1,0.001]
[1764206659233,0.9515,3032.2,3032.1,0.001]
[1764206659730,1.26011688,3032.2,3032.1,0.001]
[1764206660646,4.55805237,3032.2,3032.1,0.001]
[1764206660834,1.26011688,3032.2,3032.1,0.001]
[1764206661426,4.55805237,3032.2,3032.1,0.001]
[1764206662151,1.97072819,3032.2,3032.1,0.001]
[1764206662332,5.26866368,3032.2,3032.1,0.001]
[1764206663148,4.55805237,3032.2,3032.1,0.001]
[1764206663373,4.76705237,3032.2,3032.1,0.001]
[1764206664243,0.77411688,3032.2,3032.1,0.001]
[1764206664641,1.26011688,3032.2,3032.1,0.001]
[1764206665430,4.55805237,3032.2,3032.1,0.001]
[1764206665735,1.26011688,3032.2,3032.1,0.001]
[1764206665936,0.77411688,3032.2,3032.1,0.001]
[1764206666342,1.26011688,3032.2,3032.1,0.001]
[1764206666948,4.55805237,3032.2,3032.1,0.001]
[1764206667157,1.26011688,3032.2,3032.1,0.001]
[1764206668338,4.55805237,3032.2,3032.1,0.001]
[1764206668638,1.26011688,3032.2,3032.1,0.001]
[1764206670466,0.30861688,3032.2,3032.1,0.4815]
[1764206670669,0.30861688,3032.2,3032.1,1.1544]
[1764206670968,0.002,3032.6,3032.2,3.29793549]
[1764206671141,0.30802306,3032.5,3032.3,0.77503625]
[1764206671340,0.30802306,3032.4,3032.3,0.77503625]